Cogmind - Beta 15 @@@ ROGUE MODE // 2025.09.17 @ 13:08:03 Player: Petvaria Result: Destroyed by S-27 Virus with Autogun Performance ------------- Evolutions (4) 2000 Regions Visited (4) 800 Robots Destroyed (12) 60 Value Destroyed (413) 413 Prototype IDs (3) 60 Alien Tech Used (0) 0 Bonus (320) 320 TOTAL SCORE: 3653 Bonus ------- Follower Combat Kills 20 Registered with UFD 300 Cogmind --------- Core Integrity 0/850 Matter 290/300 Energy 80/100 System Corruption 0% Temperature Cool (0) Movement Flying (35) Location -6/Factory Parts ------- > --- POWER (1) -------- (None) > --- PROPULSION (5) --- VTOL Module > --- UTILITY (7) ------ (None) > --- WEAPON (2) ------- (None) > --- INVENTORY (5) ---- Deep Structural Scanner Improved Reaction Control System IN-MT5's Pitchfork "Insurrection" (17) Peak State ------------ > --- POWER ------------ Light Angular Momentum Engine > --- PROPULSION ------- Light Treads Compact Wheel > --- UTILITY ---------- Scrap Shield > --- WEAPON ----------- Companion Sword > --- INVENTORY -------- Ion Engine Light Treads Surveybot 17 Chip Subdweller Machine Gun Scrap Shield Fragment [Rating: 18] Favorites ----------- Power Ion Engine Engine Ion Engine Propulsion Light Treads Treads Light Treads Wheel Compact Wheel Utility Scrap Shield Storage Small Storage Unit Protection Scrap Shield Weapon Assault Rifle Energy Gun Subdweller Laser Ballistic Gun Assault Rifle Special Weapon Shield Trident Slashing Weapon Companion Sword Build | -11 -10 -10 -9 -6 ------- Run | Yrd Mat Sub Scr Fac Slots Evolved 8 | . . . . 8 Power . | . . . . . Propulsion 3 | . . . . 3 Utility 5 | . . . . 5 Weapon . | . . . . . Parts Attached 19 | 6 . 4 5 4 Power 3 | 1 . . 2 . Engine 3 | 1 . . 2 . Core . | . . . . . Reactor . | . . . . . Propulsion 6 | 2 . . 2 2 Treads 3 | 2 . . . 1 Leg . | . . . . . Wheel 2 | . . . 2 . Hover . | . . . . . Flight 1 | . . . . 1 Utility 2 | 1 . 1 . . Device . | . . . . . Storage 1 | 1 . . . . Processor . | . . . . . Hackware . | . . . . . Protection 1 | . . 1 . . Artifact . | . . . . . Weapon 8 | 2 . 3 1 2 Energy Gun 2 | 1 . 1 . . Energy Cannon . | . . . . . Ballistic Gun 3 | 1 . 2 . . Ballistic Cannon . | . . . . . Launcher . | . . . . . Special Weapon 2 | . . . . 2 Impact Weapon . | . . . . . Slashing Weapon 1 | . . . 1 . Piercing Weapon . | . . . . . Special Melee Weapon . | . . . . . Unidentified Prototypes 1 | . . . 1 . Parts Lost 9 | . . . 2 7 Power 2 | . . . 1 1 Propulsion 4 | . . . 1 3 Utility 1 | . . . . 1 Weapon 2 | . . . . 2 Highest Loss Streak 4 | . . . 2 4 To Critical Strikes . | . . . . . Average Backups 3 | 2 6 4 3 1 Power . | . 1 1 . . Propulsion 1 | 1 4 2 1 . Utility . | . . . . 1 Weapon 1 | . 1 1 1 . Tool/Special . | . . . . . Unused Backups 8 | . . 3 3 2 Power . | . . . . . Propulsion 3 | . . 2 1 . Utility 3 | . . . 1 2 Weapon 2 | . . 1 1 . Tool/Special . | . . . . . Average Slot Usage (%) 72 | . 85 85 78 31 Engine 12 | . 14 14 14 4 Treads 17 | . 28 28 14 10 Wheel 8 | . . . 13 4 Protection 11 | . . 13 14 4 Energy Gun 7 | . 14 13 7 . Ballistic Gun 8 | . 14 14 7 . Slashing Weapon 4 | . . . 6 5 Peak Build Rating 18 | 6 6 11 18 16 Average Rating 12 | 4 6 9 14 13 On Entrance 7 | . 6 6 10 14 Naked Turns 63 | . . . . 63 Heaviest Build 33 | 13 13 29 33 27 Greatest Support 40 | 40 40 40 40 12 Greatest Overweight (x) 2 | . . . 2 2 Average Overweight (x) 1 | . . . 1 1 Largest Inventory Capacity 8 | 8 8 8 5 5 Average Capacity 5 | 6 8 5 5 5 Most Carried 7 | 6 7 7 5 4 Average Carried 4 | 3 6 5 4 1 Final Capacity 8 | 8 8 5 5 5 Final Carried 7 | 6 7 5 3 3 Class Distribution -------------------- 100% | Mutant Dominant Class ---------------- Mutant | -10/Materials Mutant | -10/Subcaves Mutant | -9/Scraptown Mutant | -6/Factory Resources | -11 -10 -10 -9 -6 ----------- Run | Yrd Mat Sub Scr Fac Matter Collected 445 | 219 . 151 20 55 Remotely . | . . . . . Salvage Created 535 | . . 98 . 437 Parts 29 | . . 8 . 21 Haulers Intercepted . | . . . . . Recyclers Shooed 1 | . . . . 1 Parts Field Recycled . | . . . . . Retrieved Matter . | . . . . . Parts Self-Destructed . | . . . . . Prevented . | . . . . . Kills | -11 -10 -10 -9 -6 ------- Run | Yrd Mat Sub Scr Fac Combat Hostiles Destroyed 7 | . . 2 . 5 Melee 5 | . . . . 5 Guns 2 | . . 2 . . Classes Destroyed 7 | . . 1 . 6 Worker 2 | . . . . 2 Builder 1 | . . . . 1 Operator 2 | . . . . 2 Grunt 1 | . . . . 1 Sentry 3 | . . . . 3 Hunter 1 | . . . . 1 Subdweller 2 | . . 2 . . Best Kill Streak 4 | . . 1 . 4 Combat Bots Only 4 | . . 1 . 4 Max Kills in Single Turn 1 | . . 1 . 1 Gunslinging . | . . . . . Exploded . | . . . . . Melee 1 | . . . . 1 Uniques/NPCs Destroyed . | . . . . . Combat | -11 -10 -10 -9 -6 -------- Run | Yrd Mat Sub Scr Fac Hostile Shots Fired 207 | . . 24 8 175 Missed 55 | . . 4 1 50 Hits 152 | . . 20 7 125 Projectile 152 | . . 20 7 125 Critical Strikes 5 | . . 1 2 2 Damage Taken 2587 | . . 414 734 1439 Core 1057 | . . 66 130 861 Absorbed by Shields . | . . . . . Redirected to Shielding 10 | . . . . 10 Core Remaining (%) 60 | 100 . . 21 . Volleys Fired 12 | . . 12 . . Largest 2 | . . 2 . . Hottest 80 | . . 80 . . Shots Fired 24 | . . 24 . . Gun 24 | . . 24 . . Cannon . | . . . . . Launcher . | . . . . . Special . | . . . . . Kinetic 20 | . . 20 . . Thermal 4 | . . 4 . . Explosive . | . . . . . Electromagnetic . | . . . . . Robot Hit Streak 10 | . . 10 . . Robot Miss Streak 1 | . . 1 . . Penetration Max . | . . . . . Secondary Targets . | . . . . . Shots Hit Robots 46 | . . 18 . 28 Core Hits 14 | . . 5 . 9 Critical Kills . | . . . . . Critical Parts Destroyed . | . . . . . Critical Strikes . | . . . . . Melee Attacks 51 | . . . 11 40 Impact . | . . . . . Slashing 51 | . . . 11 40 Piercing . | . . . . . Sneak Attacks 7 | . . . . 7 Combat Hostiles . | . . . . . Follow-up Attacks . | . . . . . Damage Inflicted 1750 | . . 259 . 1491 Guns 259 | . . 259 . . Cannons . | . . . . . Explosions . | . . . . . Melee 1490 | . . . . 1490 Ramming 1 | . . . . 1 Kinetic 175 | . . 175 . . Thermal 84 | . . 84 . . Explosive . | . . . . . Electromagnetic . | . . . . . Impact . | . . . . . Slashing 1490 | . . . . 1490 Piercing . | . . . . . Highest Corruption 5 | . . . 5 . Average Corruption 4 | . . . 4 . Corruption Purged . | . . . . . Corruption Blocked . | . . . . . Effects 2 | . . . 2 . Matter Fused 1 | . . . 1 . Heat Flow Errors 1 | . . . 1 . Overload Shots . | . . . . . Overflow Damage 285 | . . . . 285 Projectiles . | . . . . . Explosions . | . . . . . Melee 285 | . . . . 285 Knockbacks . | . . . . . Impact . | . . . . . Kinetic . | . . . . . Secondary . | . . . . . Self-Inflicted Damage . | . . . . . Shots . | . . . . . Rammed 1 | . . . . 1 Targets Rammed 1 | . . . . 1 Kicked . | . . . . . Crushed . | . . . . . Highest Temperature 126 | . . . 126 . Average Temperature 67 | . . . 67 . Received Heat Transfer 480 | . . 105 . 375 Siege Activations . | . . . . . Martial Activations . | . . . . . Shielding Activations . | . . . . . Robots Disrupted 1 | . . . . 1 Combat Hostiles 1 | . . . . 1 Robots Corrupted . | . . . . . Combat Hostiles . | . . . . . Parts Fried . | . . . . . Impact Corruptions . | . . . . . Robots Melted . | . . . . . Combat Hostiles . | . . . . . Parts Melted . | . . . . . Heat Transferred 100 | . . 100 . . Parts Sabotaged . | . . . . . Parts Stolen . | . . . . . Parts Stripped . | . . . . . Power Chain Reactions . | . . . . . Alert | -11 -10 -10 -9 -6 ------- Run | Yrd Mat Sub Scr Fac Maximum Alert Level . | . . . . . Low Security (%) 100 | 100 100 . . 100 Level 1 . | . . . . . Level 2 . | . . . . . Level 3 . | . . . . . Level 4 . | . . . . . Level 5 . | . . . . . High Security . | . . . . . Max Security . | . . . . . Peak Influence 107 | . . . . 107 Initial . | . . . . . Average 13 | . . . . 17 Influence Increases 314 | . . . . 314 Destroy 0b10 Robot/C 120 | . . . . 120 Destroy 0b10 Robot/NC 25 | . . . . 25 Destroy Leader 40 | . . . . 40 Allied During Kill 4 | . . . . 4 Successful Hack 30 | . . . . 30 Destroy Structure 5 | . . . . 5 Lose Combat Pursuer 90 | . . . . 90 Influence Decreases 266 | . . . . 266 Time Decay 135 | . . . . 135 Lost Part 51 | . . . . 51 Lost Ally 80 | . . . . 80 Squads Dispatched 7 | . . . . 7 Investigation 1 | . . . . 1 Extermination 1 | . . . . 1 Reinforcement 3 | . . . . 3 Assault . | . . . . . Garrison 2 | . . . . 2 Intercept . | . . . . . Searches Triggered . | . . . . . Construction Impeded . | . . . . . Haulers Reinforced . | . . . . . Active Scanning Responses . | . . . . . Cargo Convoy Interrupts . | . . . . . Stealth | -11 -10 -10 -9 -6 --------- Run | Yrd Mat Sub Scr Fac Distress Signals . | . . . . . Communications Jammed . | . . . . . Distress Signals . | . . . . . Times Spotted 27 | . . 4 1 22 Peak Tracking Total 8 | . . 2 1 8 Tactical Retreats 3 | . . . . 3 Traps | -11 -10 -10 -9 -6 ------- Run | Yrd Mat Sub Scr Fac Traps Triggered . | . . . . . Indirectly . | . . . . . Trap Hack Attempts . | . . . . . Triggered . | . . . . . Disarmed . | . . . . . Reprogrammed . | . . . . . Reused . | . . . . . Traps Extracted . | . . . . . Installed . | . . . . . Triggered . | . . . . . Machines | -11 -10 -10 -9 -6 ---------- Run | Yrd Mat Sub Scr Fac Machines Disabled 3 | . . . 3 . Max in Single Turn 1 | . . . 1 . Machines Repaired . | . . . . . Machines Dismantled . | . . . . . Machines Sabotaged . | . . . . . Overloaded Fab Kills . | . . . . . Hacking | -11 -10 -10 -9 -6 --------- Run | Yrd Mat Sub Scr Fac Machines Accessed 6 | . . 1 2 3 Terminals 1 | . . . . 1 Fabricators 2 | . . . . 2 Repair Stations . | . . . . . Recycling Units . | . . . . . Scanalyzers . | . . . . . Garrison Access . | . . . . . Total Hacks 25 | . . 1 18 6 Successful 22 | . . 1 18 3 Failed 3 | . . . . 3 Catastrophic 1 | . . . . 1 Database Lockouts . | . . . . . Manual 1 | . . . . 1 Terminals 1 | . . . . 1 Fabricators 5 | . . . . 5 Repair Stations . | . . . . . Recycling Units . | . . . . . Scanalyzers . | . . . . . Garrison Access . | . . . . . Terminal Hacks 19 | . . 1 18 . Record 17 | . . . 17 . Open Door 2 | . . 1 1 . Fabricator Hacks 2 | . . . . 2 Load Schematic 1 | . . . . 1 Build 1 | . . . . 1 Repair Station Hacks . | . . . . . Recycling Unit Hacks . | . . . . . Scanalyzer . | . . . . . Garrison Access Hacks . | . . . . . Unauthorized Hacks 1 | . . . . 1 Terminals 1 | . . . . 1 Operators 1 | . . . . 1 Fabricators . | . . . . . Repair Stations . | . . . . . Recycling Units . | . . . . . Scanalyzers . | . . . . . Garrison Access . | . . . . . Data Cores Recovered . | . . . . . Used . | . . . . . Hacking Detections 2 | . . . . 2 Full Trace Events 1 | . . . . 1 Feedback Events . | . . . . . Feedback Blocked . | . . . . . Robot Schematics Acquired . | . . . . . Robots Built . | . . . . . Authchips . | . . . . . Time . | . . . . . Total Robot Build Rating . | . . . . . Part Schematics Acquired 1 | . . . 1 . Parts Built 1 | . . . . 1 Authchips . | . . . . . Time 76 | . . . . 76 Total Part Build Rating 5 | . . . . 5 Parts Repaired . | . . . . . Time . | . . . . . Parts Recycled . | . . . . . Recycled Matter . | . . . . . Retrieved Matter . | . . . . . Retrieved Components . | . . . . . Parts Scanalyzed . | . . . . . Part Schematics Acquired . | . . . . . Parts Damaged . | . . . . . Bothacking | -11 -10 -10 -9 -6 ------------ Run | Yrd Mat Sub Scr Fac Used RIF Installer . | . . . . . Robots Hacked . | . . . . . Non-combat . | . . . . . Combat . | . . . . . Robot Hacks Applied . | . . . . . Relay Couplers Released . | . . . . . Fabnet Peak Effective % . | . . . . . Robots Rewired 1 | . . . . 1 Allies Hacked . | . . . . . Hacks Repelled . | . . . . . Allies | -11 -10 -10 -9 -6 -------- Run | Yrd Mat Sub Scr Fac Total Allies 4 | . . . . 4 Largest Group 1 | . . . . 1 Highest-Rated Group 32 | . . . . 32 Highest-Rated Ally 32 | . . . . 32 Total Orders . | . . . . . Ally Attacks 8 | . . . . 8 Total Damage 313 | . . . . 313 Kills 1 | . . . . 1 Allies Corrupted . | . . . . . Allies Melted . | . . . . . Intel | -11 -10 -10 -9 -6 ------- Run | Yrd Mat Sub Scr Fac Active Infowar (turns) . | . . . . . Robot Analysis Total . | . . . . . Derelict Logs Recovered 2 | . . . 2 . Drone Launches . | . . . . . Drone Recoveries . | . . . . . Exploration | -11 -10 -10 -9 -6 ------------- Run | Yrd Mat Sub Scr Fac Turns Passed 4040 | 94 81 1001 2215 649 Spaces Moved 3002 | 60 40 582 1810 510 Core 141 | 19 . . . 122 Treads 667 | 41 40 582 4 . Legs . | . . . . . Wheels 2194 | . . . 1806 388 Hover . | . . . . . Flight . | . . . . . Fastest Speed 50 | 50 160 160 115 50 Average Speed 125 | 125 160 160 120 101 Slowest Speed 160 | 160 160 160 160 150 Overloaded Moves . | . . . . . Propulsion Burnouts . | . . . . . Robots Hopped . | . . . . . Potential Cave-ins 2 | . . . 2 . Cave-ins Triggered 2 | . . . 2 . Exploration Rate (%) 29 | 4 6 27 93 15 Regions Visited 4 Branch Regions 2 Pre-discovered Areas 5 | . . . 5 . Known Exits Taken 1 | . . . 1 . Unknown Exits Taken 3 | 1 1 1 . . Scrap Searched 11 | . . . 11 . Spaces Dug 12 | . . . 7 5 Terrain Destroyed 12 | . . . 7 5 Melee 12 | . . . 7 5 Projectile . | . . . . . AOE . | . . . . . Terrain Rammed . | . . . . . Walls Destroyed . | . . . . . Machines Disabled . | . . . . . Actions | -11 -10 -10 -9 -6 --------- Run | Yrd Mat Sub Scr Fac Total 3191 | 79 57 630 1839 586 Wait 62 | 2 17 20 . 23 Move 2997 | 59 39 581 1808 510 Hop . | . . . . . Pick Up 24 | 12 1 1 6 4 Fast Attach 2 | . . 2 . . Attach 13 | 6 . . 3 4 Detach 2 | . . 1 . 1 Swap 5 | . . 3 2 . Drop 15 | . . 6 8 1 Fire 12 | . . 12 . . Melee 51 | . . . 11 40 Ram 1 | . . . . 1 Kick . | . . . . . Crush . | . . . . . Escape Stasis 1 | . . . 1 . Rewire 1 | . . . . 1 Trap . | . . . . . Miscellaneous 5 | . . 4 . 1 Route ------- -11/Scrapyard -10/Materials -10/Subcaves -9/Scraptown (discovered 2 exits: *Fac x2) -6/Factory (discovered 3 exits: Fac x2 / Low) History --------- Turn | Location | Event 7 | -11/Scrapyard | Discovered new exit (range 14) 95 | -11/Scrapyard | Entered Materials 168 | -10/Materials | Discovered new exit (range 6) 176 | -10/Materials | Entered Subcaves 177 | -10/Subcaves | Approached by a straggling Scientist 188 | -10/Subcaves | Ambushed by Subdwellers from Twisted Machinery 303 | -10/Subcaves | Build established: Mutant 304 | -10/Subcaves | Scientist uncovered a shortcut to Scraptown 1177 | -10/Subcaves | Entered Scraptown 1338 | -9/Scraptown | Learned location of Extension (-4) 1375 | -9/Scraptown | Visited Assassins FH 1394 | -9/Scraptown | Visited Comm Corps 1450 | -9/Scraptown | Scanned Subdweller tech in exchange for log data 1452 | -9/Scraptown | Learned location of 1 exit from Research 1453 | -9/Scraptown | Learned Research trap positions 1716 | -9/Scraptown | Discovered new exit (range 3) 1817 | -9/Scraptown | Visited Bundlers 1884 | -9/Scraptown | Visited TADAMA 1897 | -9/Scraptown | Visited IN-MT5's Study 1942 | -9/Scraptown | Visited Junk Repository 1982 | -9/Scraptown | Visited Cyclists 2212 | -9/Scraptown | Visited UFD Registry 2212 | -9/Scraptown | Registered with UFD as "Nukeslasher" 2241 | -9/Scraptown | Visited DA-N13 Charitable Foundation 2253 | -9/Scraptown | Found DCF Scrap (29 items) 2285 | -9/Scraptown | Visited Scrapoid Pod Storage 2313 | -9/Scraptown | Visited Junk Repository 2358 | -9/Scraptown | Visited Sword Containment 2524 | -9/Scraptown | Visited Scrap Suit Storage 2551 | -9/Scraptown | Visited Cartography Club 2581 | -9/Scraptown | Found Surveybot 17 Chip 2710 | -9/Scraptown | Learned location of Warlord (-4) 2710 | -9/Scraptown | Learned location of Hub_04(d) (-4) 2710 | -9/Scraptown | Learned 8 Materials zone layouts 2710 | -9/Scraptown | Learned 16 Materials zone layouts 2710 | -9/Scraptown | Learned 12 Research zone layouts 2710 | -9/Scraptown | Learned 8 Upper Caves zone layouts 2710 | -9/Scraptown | Learned 12 Upper Caves zone layouts 2710 | -9/Scraptown | Learned 16 Proximity Caves zone layouts 2710 | -9/Scraptown | Learned 4 Armory zone layouts 2710 | -9/Scraptown | Learned Research emergency access door positions 2710 | -9/Scraptown | Learned location of 1 exit from Factory 2710 | -9/Scraptown | Learned location of 1 exit from Research 2710 | -9/Scraptown | Learned location of 2 exits from Lower Caves 2710 | -9/Scraptown | Identified exit to Factory 2830 | -9/Scraptown | Found Deep Structural Scanner 2980 | -9/Scraptown | Visited A0-MCA Data Center 2997 | -9/Scraptown | Given a B rating by A0-MCA 3022 | -9/Scraptown | Visited Science Testing Area 3043 | -9/Scraptown | Visited Curators Association 3206 | -9/Scraptown | Entered Cyclist Reading Room 3324 | -9/Scraptown | Attacked by Scraptown defenders 3343 | -9/Scraptown | Crushed by falling debris 3344 | -9/Scraptown | Core integrity fell below 50% 3347 | -9/Scraptown | Crushed by falling debris 3392 | -9/Scraptown | Entered Factory 3392 | -6/Factory | Evolved 8 slots: Propulsion x3, Utility x5 3393 | -6/Factory | Identified exit to Factory 3394 | -6/Factory | Identified exit to Lower Caves 3889 | -6/Factory | Garrison activated, responded to threat 3946 | -6/Factory | Fabricated IN-MT5's Pitchfork "Insurrection" (x1) 3946 | -6/Factory | Lost 4 parts (1p3n) 3968 | -6/Factory | Core integrity fell below 50% 4013 | -6/Factory | Reprogrammed and armed K-01 Serf 4018 | -6/Factory | Reprogrammed and armed K-01 Serf 4024 | -6/Factory | Core integrity fell below 20% 4028 | -6/Factory | Reprogrammed and armed K-01 Serf 4041 | -6/Factory | Destroyed by S-27 Virus with Autogun Last Messages --------------- Slammed into U-05 Engineer. K-01 Serf cleans the Fusion Modulator. IN-MT5's Pitchfork "Insurrection" reprograms and arms K-01 Serf. K-01 Serf destroyed. Acquired Shield Trident. Acquired 10 matter. K-01 Serf collects debris. Shield Trident destroyed. IN-MT5's Pitchfork "Insurrection" reprograms and arms K-01 Serf. S-27 Virus suffers critical hit (Impale). S-27 Virus destroyed. ALERT: Suspicious intruders detected, dispatching Specialist reinforcements to area. S-27 Virus suffers critical hit (Impale). R-10 Processor collects Med. Matter Pod. K-01 Serf destroyed. Acquired VTOL Module. R-10 Processor collects Lgt. Ion Engine. Map ----- +----------------------------------------------------+ | ??????????????????????????????????????????????# ? | | ??????????????????????????????????????????????# " | | ??????????????????????????????????????????????# | | ??????????????????????????????????????????????# " | | ??????????????????????????????????????????????# " | | ??????????????????????????????????????????????# " | | ??????????????????????????????????????????????# | | ??????????????????????????????????????????????# | | ??????????????????????????????????????????????# | | ???????????????????????????????????????????????? | | ?????????????????????????????????????????????????# | | ?????????????????????????????????????????????????# | | ?????????????????????????????????????????????????# | | ???????????????????????????????????????########### | | ???????????????????????????????????????# # | | ???????????????????????????????????????# # | | ?????? ##################???????????# = # | | ????????# #???????????#! = # | | ???????????####### #???????????# # | | ?????????????????# ########????# # | | ?????????????????# # #????# * / | | ????????????????## """ # #????# # | | ????????????????# """ #t """ ##########/##### | | ????????????????+ """ s/ """ / #???# | | ????????????????# ssl# """ ##### #???# | | ????????????????# RR@*# %!#???# #?### | | ????????????????# ###############???# | | ????????????????# ??????????????????# | | ????????????????# ??????????????????# | | ????????????????# ??????????????????# | | ????????????????# ??????????????#???# | | ????????????????# ?????????????? ??? | | ???????????????? ?????????????? ??############# | | ????????H???????? ???????????????? ??????????????? | | ?????????????????????????????????? ??????????????? | | ?????????????????????????????????# #?????????????? | | ???????????????????????????????### ###???????????? | | ???????????????????????????????# #???????????? | | ???????????????????############? ????????????? | | ???????????????????+ ?? ????????????? | | ???????????????????# #?#? ?????????????? | | ???????????????????# !![ #?? ?????????????# | | ???????????????????# !![ #####+##########????# | | ???????????????????# ![[ + """"" #????# | | ???????????????????# # """ ""T"" ###### | | ???????????????????# # """ + !%* | | ???????????????????# # """ ###### | | ???????????????????# ###### #????? | | ???????????????????# #????# #????? | | ??????????????###### ######################### | +----------------------------------------------------+ Best States ------------- Heat Dissipation 37 Energy Generation 18 Energy Capacity 250 Matter Stores 300 Matter Capacity 300 Sight Range 16 Terrain Scan Density 10 Armor Coverage 800 Evasion (%) 50 Recoil Reduction 2 Item Schematics ----------------- IN-MT5's Pitchfork "Insurrection" | -9/Scraptown | Archive Robot Schematics ------------------ None Fabricated ------------ IN-MT5's Pitchfork "Insurrection" | x1 | -6/Factory Repaired ---------- Nothing Alien Tech Used ----------------- None Achievements -------------- None Challenges ------------ None Game ------ Seed SupercompositeColdGuard Manual? 0 Play Time 00:26:53 Cumulative 225.8 hours Start 2025.09.17 @ 12:43:49 End 2025.09.17 @ 13:08:03 Sessions 1 Manual Loads 0 Difficulty Rogue Special Mode None Game No. 199 Rogue 199 Adventurer 0 Explorer 0 Win Type - Total 13 Types 7/0/2/2/1/0/0/0/0/1 Lore% 93 Gallery% 86 Achievement% 75 Wizard Run 0 Options --------- Layout 1 ASCII 0 Keyboard 0 Movement Numpad Keybinds 0 Fullscreen 1 Font 24/Proggy Map View 50x35 Zoom Use 0% Tactical HUD 0 Map Filters NONE Filters NONE Steam 1 RUN: 8e9e79b6-0dd8-4fa3-bd01-a1d2d5d33d04